fUST/lending_fUST_20250606
["ID","MTS","AMOUNT","RATE_DAILY","PERIOD"]
[364734456,1749221466240,-440.0,0.00022739,2]
[364734457,1749221466249,-440.0,0.00022739,2]
[364734458,1749221466258,-2141.64,0.00022739,2]
[364734459,1749221466267,-1048.92,0.00022739,2]
[364734460,1749221466276,-1728.8,0.00022739,2]
[364734461,1749221466286,-440.0,0.00022739,2]
[364734462,1749221466295,-1610.94,0.00022739,2]
[364734463,1749221466305,-440.0,0.00022739,2]
[364734464,1749221466314,-762.23,0.00022739,2]
[364734465,1749221466323,-440.0,0.00022739,2]
[364734466,1749221466332,-440.0,0.00022739,2]
[364734467,1749221466341,-440.0,0.00022739,2]
[364734468,1749221466350,-440.0,0.00022739,2]
[364734469,1749221466359,-549.15,0.00022739,2]
[364734470,1749221466369,-440.0,0.00022739,2]
[364734471,1749221466379,-1303.87,0.00022739,2]
[364734472,1749221466388,-440.0,0.00022739,2]
[364734473,1749221466397,-3348.6,0.00022739,2]
[364734474,1749221466406,-440.0,0.00022739,2]
[364734475,1749221466415,-3960.93,0.00022739,2]
[364734476,1749221466425,-180.15,0.00022739,2]
[364734477,1749221466434,-3666.78,0.00022739,2]
[364734478,1749221466444,-440.0,0.00022739,2]
[364734479,1749221466454,-440.0,0.00022739,2]
[364734480,1749221466465,-587.0,0.00022772,2]
[364734481,1749221466475,-587.0,0.00022772,2]
[364734482,1749221466485,-2000.0,0.00022789,2]
[364734483,1749221466494,-5100.6586578,0.00022831,8]
[364734484,1749221466504,-800.0,0.00022856,2]
[364734485,1749221466513,-2000.0,0.00022865,2]
[364734486,1749221466522,-151.0,0.000229,5]
[364734487,1749221466531,-35715.28,0.000229,2]
[364734488,1749221466541,-2000.0,0.00022914,2]
[364734489,1749221466550,-207.4,0.00022937,2]
[364734490,1749221466560,-151.0,0.00022937,2]
[364734491,1749221466570,-1688.0,0.00022937,2]
[364734492,1749221466579,-500.0,0.00022937,2]
[364734493,1749221466589,-500.0,0.00022937,2]
[364734494,1749221466599,-500.0,0.00022937,2]
[364734495,1749221466608,-500.0,0.00022937,2]
[364734496,1749221466617,-500.0,0.00022937,2]
[364734497,1749221466627,-500.0,0.00022937,2]
[364734498,1749221466635,-500.0,0.00022937,2]
[364734499,1749221466645,-632.79567003,0.00022937,2]
[364734500,1749221466654,-500.0,0.00022937,2]
[364734501,1749221466664,-500.0,0.00022937,2]
[364734502,1749221466674,-500.0,0.00022937,2]
[364734503,1749221466683,-5000.0,0.00022937,2]
[364734504,1749221466692,-500.0,0.00022937,2]
[364734505,1749221466702,-500.0,0.00022937,2]
[364734506,1749221466715,-500.0,0.00022937,2]
[364734507,1749221466725,-500.0,0.00022937,2]
[364734508,1749221466735,-500.0,0.00022937,2]
[364734509,1749221466744,-2553.74923471,0.00022937,2]
[364734510,1749221466753,-500.0,0.00022937,2]
[364734511,1749221466762,-500.0,0.00022937,2]
[364734512,1749221466772,-500.0,0.00022937,2]
[364734513,1749221466784,-1750.456,0.00022992,2]
[364734514,1749221466793,-2351.0,0.00022994,2]
[364734515,1749221466803,-151.0,0.00023,7]
[364734516,1749221466811,-2000.0,0.00023,2]
[364734517,1749221466822,-53198.0,0.00023,2]
[364734518,1749221466831,-858.9,0.00023,7]
[364734519,1749221466841,-1562.02,0.00023,7]
[364734520,1749221466850,-834.50537533,0.00023,3]
[364734521,1749221466860,-229.52673067,0.00023,3]
[364734522,1749221466871,-160.0,0.00023,3]
[364734523,1749221466881,-160.0,0.00023,3]
[364734524,1749221466890,-423.83542519,0.00023,3]
[364734525,1749221466899,-160.0,0.00023,3]
[364734526,1749221466911,-5100.6586578,0.00023003,8]
[364734527,1749221466920,-440.0,0.00023013,2]
[364734528,1749221466929,-487.07,0.00023013,2]
[364734529,1749221466939,-440.0,0.00023013,2]
[364734530,1749221466949,-440.0,0.00023013,2]
[364734531,1749221466960,-440.0,0.00023013,2]
[364734532,1749221466970,-2565.25,0.00023013,2]
[364734533,1749221466979,-630.41,0.00023013,2]
[364734534,1749221466988,-3341.58,0.00023013,2]
[364734535,1749221466997,-1359.12,0.00023013,2]
[364734536,1749221467007,-2695.29,0.00023013,2]
[364734537,1749221467017,-1033.38,0.00023013,2]
[364734538,1749221467026,-1275.03,0.00023013,2]
[364734539,1749221467035,-1382.16,0.00023013,2]
[364734540,1749221467045,-440.0,0.00023013,2]
[364734541,1749221467054,-440.0,0.00023013,2]
[364734542,1749221467064,-712.69,0.00023013,2]
[364734543,1749221467074,-440.0,0.00023013,2]
[364734544,1749221467084,-7042.23,0.00023013,2]
[364734545,1749221467094,-206.25,0.00023013,2]
[364734546,1749221467103,-440.0,0.00023013,2]
[364734547,1749221467113,-440.0,0.00023013,2]
[364734548,1749221467122,-2141.64,0.00023013,2]
[364734549,1749221467132,-1048.92,0.00023013,2]
[364734550,1749221467141,-1728.8,0.00023013,2]
[364734551,1749221467151,-440.0,0.00023013,2]
[364734552,1749221467161,-1610.94,0.00023013,2]
[364734553,1749221467171,-440.0,0.00023013,2]
[364734554,1749221467180,-762.23,0.00023013,2]
[364734555,1749221467190,-440.0,0.00023013,2]
[364734556,1749221467199,-440.0,0.00023013,2]
[364734557,1749221467210,-440.0,0.00023013,2]
[364734558,1749221467219,-440.0,0.00023013,2]
[364734559,1749221467230,-549.15,0.00023013,2]
[364734560,1749221467240,-440.0,0.00023013,2]
[364734561,1749221467251,-1303.87,0.00023013,2]
[364734562,1749221467261,-440.0,0.00023013,2]
[364734563,1749221467271,-3348.6,0.00023013,2]
[364734564,1749221467281,-440.0,0.00023013,2]
[364734565,1749221467291,-3960.93,0.00023013,2]
[364734566,1749221467301,-151.0,0.00023013,7]
[364734567,1749221467311,-3666.78,0.00023013,2]
[364734568,1749221467320,-440.0,0.00023013,2]
[364734569,1749221467330,-440.0,0.00023013,2]
[364734570,1749221467340,-1815.222872,0.00023047,2]
[364734571,1749221467351,-636.12588128,0.00023072,73]
[364734572,1749221467360,-117926.36,0.000231,7]
[364734573,1749221467369,-151.0,0.000231,7]
[364734574,1749221467379,-195.550313,0.000231,7]
[364734575,1749221467389,-195.550313,0.000231,7]
[364734576,1749221467398,-151.0,0.000231,7]
[364734577,1749221467408,-151.0,0.000231,7]
[364734578,1749221467417,-530.415545,0.000231,2]
[364734579,1749221467427,-156.828018,0.000231,7]
[364734580,1749221467437,-530.415545,0.000231,2]
[364734581,1749221467448,-156.828018,0.000231,7]
[364734582,1749221467457,-192.353307,0.000231,7]
[364734583,1749221467467,-192.353307,0.000231,7]
[364734584,1749221467477,-151.0,0.000231,7]
[364734585,1749221467487,-151.0,0.000231,7]
[364734586,1749221467496,-191.92440929,0.00023102,2]
[364734587,1749221467506,-475.72,0.00023161,2]
[364734588,1749221467517,-5100.6586578,0.00023176,8]
[364734589,1749221467526,-501.30822483,0.00023231,2]
[364734590,1749221467536,-568.73542137,0.00023287,2]
[364734591,1749221467546,-487.07,0.00023287,2]
[364734592,1749221467555,-440.0,0.00023287,2]
[364734593,1749221467564,-440.0,0.00023287,2]
[364734594,1749221467574,-440.0,0.00023287,2]
[364734595,1749221467583,-2565.25,0.00023287,2]
[364734596,1749221467595,-630.41,0.00023287,2]
[364734597,1749221467606,-3341.58,0.00023287,2]
[364734598,1749221467615,-1359.12,0.00023287,2]
[364734599,1749221467626,-2695.29,0.00023287,2]
[364734600,1749221467636,-1033.38,0.00023287,2]
[364734601,1749221467645,-151.0,0.00023287,7]
[364734602,1749221467654,-1275.03,0.00023287,2]
[364734603,1749221467664,-1382.16,0.00023287,2]
[364734604,1749221467674,-440.0,0.00023287,2]
[364734605,1749221467684,-440.0,0.00023287,2]
[364734606,1749221467694,-712.69,0.00023287,2]
[364734607,1749221467703,-440.0,0.00023287,2]
[364734608,1749221467715,-7042.23,0.00023287,2]
[364734609,1749221467810,-440.0,0.00023287,2]
[364734610,1749221467835,-440.0,0.00023287,2]
[364734611,1749221467845,-2141.64,0.00023287,2]
[364734612,1749221467857,-1048.92,0.00023287,2]
[364734613,1749221467867,-1728.8,0.00023287,2]
[364734614,1749221467878,-440.0,0.00023287,2]
[364734615,1749221467888,-1610.94,0.00023287,2]
[364734616,1749221467897,-440.0,0.00023287,2]
[364734617,1749221467906,-762.23,0.00023287,2]
[364734618,1749221467916,-440.0,0.00023287,2]
[364734619,1749221467926,-440.0,0.00023287,2]
[364734620,1749221467936,-440.0,0.00023287,2]
[364734621,1749221467947,-440.0,0.00023287,2]
[364734622,1749221467957,-549.15,0.00023287,2]
[364734623,1749221467967,-440.0,0.00023287,2]
[364734624,1749221467980,-1303.87,0.00023287,2]
[364734625,1749221467989,-440.0,0.00023287,2]
[364734626,1749221467999,-3348.6,0.00023287,2]
[364734627,1749221468008,-440.0,0.00023287,2]
[364734628,1749221468017,-3960.93,0.00023287,2]
[364734629,1749221468028,-3666.78,0.00023287,2]
[364734630,1749221468038,-440.0,0.00023287,2]
[364734631,1749221468048,-440.0,0.00023287,2]
[364734632,1749221468058,-14201.10572743,0.00023326,2]
[364734633,1749221468067,-889.94644228,0.00023337,2]
[364734634,1749221468078,-5100.6586578,0.00023348,9]
[364734635,1749221468087,-2500.0,0.00023413,2]
[364734636,1749221468097,-2000.0,0.00023462,2]
[364734637,1749221468107,-974.114,0.00023465,2]
[364734638,1749221468116,-405.0,0.00023465,2]
[364734639,1749221468126,-709.0,0.00023465,2]
[364734640,1749221468135,-2224.0,0.00023465,2]
[364734641,1749221468145,-151.0,0.00023485,2]
[364734642,1749221468154,-5000.0,0.00023485,2]
[364734643,1749221468164,-1351.02,0.000235,2]
[364734644,1749221468176,-160.0,0.00023511,3]
[364734645,1749221468185,-600.0,0.0002352,2]
[364734646,1749221468195,-5100.6586578,0.00023521,9]
[364734647,1749221468205,-487.07,0.00023561,2]
[364734648,1749221468214,-440.0,0.00023561,2]
[364734649,1749221468224,-230.58251846,0.00023561,2]
[364734650,1749221468234,-440.0,0.00023561,2]
[364734651,1749221468243,-2565.25,0.00023561,2]
[364734652,1749221468253,-630.41,0.00023561,2]
[364734653,1749221468263,-3341.58,0.00023561,2]
[364734654,1749221468273,-1359.12,0.00023561,2]
[364734655,1749221468283,-2695.29,0.00023561,2]
[364734656,1749221468293,-1033.38,0.00023561,2]
[364734657,1749221468306,-1275.03,0.00023561,2]
[364734658,1749221468316,-1382.16,0.00023561,2]
[364734659,1749221468325,-440.0,0.00023561,2]
[364734660,1749221468336,-440.0,0.00023561,2]
[364734661,1749221468346,-712.69,0.00023561,2]
[364734662,1749221468356,-440.0,0.00023561,2]
[364734663,1749221468367,-7042.23,0.00023561,2]
[364734664,1749221468376,-362.96953021,0.00023561,2]
[364734665,1749221468386,-440.0,0.00023561,2]
[364734666,1749221468395,-2141.64,0.00023561,2]
[364734667,1749221468405,-1048.92,0.00023561,2]
[364734668,1749221468416,-1728.8,0.00023561,2]
[364734669,1749221468426,-440.0,0.00023561,2]
[364734670,1749221468435,-1610.94,0.00023561,2]
[364734671,1749221468445,-440.0,0.00023561,2]
[364734672,1749221468455,-762.23,0.00023561,2]
[364734673,1749221468465,-440.0,0.00023561,2]
[364734674,1749221468474,-576.18812099,0.00023561,2]
[364734675,1749221468484,-270.0,0.00023561,2]
[364734676,1749221468493,-178.78198922,0.00023561,2]
[364734677,1749221468504,-549.15,0.00023561,2]
[364734678,1749221468514,-440.0,0.00023561,2]
[364734679,1749221468524,-1303.87,0.00023561,2]
[364734680,1749221468535,-440.0,0.00023561,2]
[364734681,1749221468545,-3348.6,0.00023561,2]
[364734682,1749221468556,-440.0,0.00023561,2]
[364734683,1749221468566,-3960.93,0.00023561,2]
[364734684,1749221468576,-3666.78,0.00023561,2]
[364734685,1749221468586,-440.0,0.00023561,2]
[364734686,1749221468595,-440.0,0.00023561,2]
[364734687,1749221468605,-112398.92506955,0.00023562,2]
[364734688,1749221468615,-151.0,0.00023562,7]
[364734689,1749221468624,-364.7156952,0.00023589,2]
[364734690,1749221468634,-364.7156952,0.00023589,2]
[364734691,1749221468644,-364.7156952,0.00023589,2]
[364734692,1749221468654,-364.5816698,0.00023589,2]
[364734693,1749221468664,-165.5293091,0.00023589,2]
[364734694,1749221468674,-151.0,0.000236,7]
[364734695,1749221468684,-151.0,0.000236,7]
[364734696,1749221468693,-151.0,0.000236,7]
[364734697,1749221468703,-400.0,0.00023624,2]
[364734698,1749221468714,-800.0,0.00023624,2]
[364734699,1749221468724,-413.65690505,0.0002365,2]
[364734700,1749221468733,-500.0,0.0002365,2]
[364734701,1749221468743,-5100.6586578,0.00023693,9]
[364734702,1749221468754,-153.0,0.00023726,2]
[364734703,1749221468763,-1154.3959266,0.00023726,2]
[364734704,1749221468773,-495.7740456,0.00023726,2]
[364734705,1749221468784,-161.2315508,0.00023726,2]
[364734706,1749221468793,-153.0,0.00023726,2]
[364734707,1749221468803,-153.0,0.00023726,2]
[364734708,1749221468814,-153.0,0.00023726,2]
[364734709,1749221468824,-153.0,0.00023726,2]
[364734710,1749221468833,-600.0,0.00023765,2]
[364734711,1749221468843,-150.0,0.00023773,2]
[364734712,1749221468854,-782.49554745,0.00023778,2]
[364734713,1749221468866,-280.15502885,0.00023799,2]
[364734714,1749221468876,-558238.36720957,0.000238,3]
[364734715,1749221468886,-151.0,0.000238,7]
[364734716,1749221468895,-151.0,0.000238,7]
[364734717,1749221468905,-151.0,0.000238,7]
[364734718,1749221468915,-151.0,0.000238,7]
[364734719,1749221468924,-151.0,0.000238,7]
[364734720,1749221468934,-151.0,0.000238,7]
[364734721,1749221468944,-151.0,0.000238,7]
[364734722,1749221468953,-834.50537533,0.000238,3]
[364734723,1749221468966,-195.550313,0.000238,7]
[364734724,1749221468976,-195.550313,0.000238,7]
[364734725,1749221468985,-299.637199,0.000238,7]
[364734726,1749221468995,-151.0,0.000238,7]
[364734727,1749221469004,-151.0,0.000238,7]
[364734728,1749221469013,-530.415545,0.000238,2]
[364734729,1749221469023,-156.828018,0.000238,7]
[364734730,1749221469033,-530.415545,0.000238,2]
[364734731,1749221469042,-156.828018,0.000238,7]
[364734732,1749221469051,-192.353307,0.000238,7]
[364734733,1749221469060,-192.353307,0.000238,7]
[364734734,1749221469070,-160.0,0.000238,3]
[364734735,1749221469079,-151.0,0.000238,7]
[364734736,1749221469089,-151.0,0.000238,7]
[364734737,1749221469098,-423.83542519,0.000238,3]
[364734738,1749221469108,-151.0,0.000238,7]
[364734739,1749221469118,-487.07,0.00023835,2]
[364734740,1749221469128,-338.49,0.00023835,2]
[364734741,1749221469137,-440.0,0.00023835,2]
[364734742,1749221469147,-2565.25,0.00023835,2]
[364734743,1749221469157,-630.41,0.00023835,2]
[364734744,1749221469167,-3341.58,0.00023835,2]
[364734745,1749221469177,-1359.12,0.00023835,2]
[364734746,1749221469187,-2695.29,0.00023835,2]
[364734747,1749221469196,-1033.38,0.00023835,2]
[364734748,1749221469205,-1275.03,0.00023835,2]
[364734749,1749221469216,-1382.16,0.00023835,2]
[364734750,1749221469226,-357.54866762,0.00023835,2]
[364734751,1749221469236,-440.0,0.00023835,2]
[364734752,1749221469246,-712.69,0.00023835,2]
[364734753,1749221469255,-440.0,0.00023835,2]
[364734754,1749221469265,-7042.23,0.00023835,2]
[364734755,1749221469274,-440.0,0.00023835,2]
[364734756,1749221469283,-2141.64,0.00023835,2]
[364734757,1749221469293,-1048.92,0.00023835,2]
[364734758,1749221469302,-1728.8,0.00023835,2]
[364734759,1749221469312,-440.0,0.00023835,2]
[364734760,1749221469321,-1610.94,0.00023835,2]
[364734761,1749221469331,-327.04,0.00023835,2]
[364734762,1749221469341,-762.23,0.00023835,2]
[364734763,1749221469350,-235.30816701,0.00023835,2]
[364734764,1749221469359,-549.15,0.00023835,2]
[364734765,1749221469369,-440.0,0.00023835,2]
[364734766,1749221469379,-1303.87,0.00023835,2]
[364734767,1749221469389,-301.40485087,0.00023835,2]
[364734768,1749221469398,-3348.6,0.00023835,2]
[364734769,1749221469407,-440.0,0.00023835,2]
[364734770,1749221469417,-3960.93,0.00023835,2]
[364734771,1749221469427,-3666.78,0.00023835,2]
[364734772,1749221469436,-440.0,0.00023835,2]
[364734773,1749221469446,-440.0,0.00023835,2]
[364734774,1749221469456,-5100.6586578,0.00023866,10]
[364734775,1749221469466,-5000.0,0.00023894,30]
[364734776,1749221469475,-1853.12,0.00023894,30]
[364734777,1749221469486,-922.92620664,0.000239,2]
[364734778,1749221469496,-653.88893927,0.000239,2]
[364734779,1749221469505,-26658.68236298,0.00023912,7]
[364734780,1749221469515,-325.58,0.00023944,11]
[364734781,1749221469526,-800.0,0.00023952,2]
[364734782,1749221469535,-2981.69180403,0.00023961,2]
[364734783,1749221469545,-5475.58158218,0.00023995,2]
[364734784,1749221469554,-228771.48,0.00024,30]
[364734785,1749221469564,-7054.45755147,0.00024,30]
[364734786,1749221469574,-155.158114,0.00024,7]
[364734787,1749221469583,-1369.63002134,0.00024,2]
[364734788,1749221469592,-190.55941656,0.00024,21]
[364734789,1749221469602,-1683.37476794,0.00024,2]
[364734790,1749221469612,-10090.11981347,0.00024,2]
[364734791,1749221469621,-10000.0,0.00024,2]
[364734792,1749221469631,-155.961066,0.00024,7]
[364734793,1749221469640,-151.0,0.00024,7]
[364734794,1749221469649,-151.0,0.00024,7]
[364734795,1749221469660,-151.0,0.00024,7]
[364734796,1749221469669,-151.0,0.00024,7]
[364734797,1749221469679,-151.0,0.00024,7]
[364734798,1749221469688,-151.0,0.00024,7]
[364734799,1749221469697,-245.465958,0.00024,7]
[364734800,1749221469708,-245.465958,0.00024,7]
[364734801,1749221469717,-151.0,0.00024,7]
[364734802,1749221469727,-151.0,0.00024,7]
[364734803,1749221469736,-151.0,0.00024,7]
[364734804,1749221469745,-151.0,0.00024,7]
[364734805,1749221469755,-151.0,0.00024,7]
[364734806,1749221469764,-151.0,0.00024,7]
[364734807,1749221469774,-153.102215,0.00024,7]
[364734808,1749221469785,-834.50537533,0.00024,7]
[364734809,1749221469795,-195.550313,0.00024,7]
[364734810,1749221469804,-195.550313,0.00024,7]
[364734811,1749221469814,-229.52673067,0.00024,7]
[364734812,1749221469825,-151.0,0.00024,7]
[364734813,1749221469834,-151.0,0.00024,7]
[364734814,1749221469844,-530.415545,0.00024,2]
[364734815,1749221469856,-156.828018,0.00024,7]
[364734816,1749221469867,-530.415545,0.00024,2]
[364734817,1749221469876,-156.828018,0.00024,7]
[364734818,1749221469887,-160.0,0.00024,7]
[364734819,1749221469896,-192.353307,0.00024,7]
[364734820,1749221469906,-192.353307,0.00024,7]
[364734821,1749221469915,-160.0,0.00024,7]
[364734822,1749221469925,-151.0,0.00024,7]
[364734823,1749221469935,-151.0,0.00024,7]
[364734824,1749221469945,-35715.28,0.00024,2]
[364734825,1749221469954,-423.83542519,0.00024,7]
[364734826,1749221469965,-315.04936747,0.00024,30]
[364734827,1749221469975,-158.15,0.00024,2]
[364734828,1749221469985,-151.0,0.00024,7]
[364734829,1749221469994,-11849.89752062,0.00024,30]
[364734830,1749221470003,-989.693131,0.00024009,3]
[364734831,1749221470013,-600.0,0.0002401,2]
[364734832,1749221470023,-5000.0,0.00024014,30]
[364734833,1749221470033,-5000.0,0.00024014,30]
[364734834,1749221470042,-5000.0,0.00024014,30]
[364734835,1749221470052,-5000.0,0.00024014,30]
[364734836,1749221470062,-5000.0,0.00024014,30]
[364734837,1749221470072,-5000.0,0.00024014,30]
[364734838,1749221470082,-5000.0,0.00024014,30]
[364734839,1749221470091,-5000.0,0.00024014,30]
[364734840,1749221470101,-543.68,0.00024019,2]
[364734841,1749221470110,-231.72382858,0.00024033,2]
[364734842,1749221470120,-5000.0,0.00024033,2]
[364734843,1749221470130,-5100.6586578,0.00024038,10]
[364734844,1749221470139,-117926.36,0.000241,7]
[364734845,1749221470148,-858.9,0.000241,7]
[364734846,1749221470158,-1562.02,0.000241,7]
[364734847,1749221470167,-900.0,0.000241,7]
[364734848,1749221470177,-423.83542519,0.000241,10]
[364734849,1749221470187,-315.04936747,0.000241,10]
[364734850,1749221470197,-11849.89752062,0.000241,10]
[364734851,1749221470207,-487.07,0.00024109,2]
[364734852,1749221470219,-510.91834689,0.00024109,2]
[364734853,1749221470229,-2565.25,0.00024109,2]
[364734854,1749221470238,-630.41,0.00024109,2]
[364734855,1749221470251,-3341.58,0.00024109,2]
[364734856,1749221470261,-1359.12,0.00024109,2]
[364734857,1749221470272,-2695.29,0.00024109,2]
[364734858,1749221470281,-1033.38,0.00024109,2]
[364734859,1749221470290,-1275.03,0.00024109,2]
[364734860,1749221470300,-1382.16,0.00024109,2]
[364734861,1749221470309,-440.0,0.00024109,2]
[364734862,1749221470319,-712.69,0.00024109,2]
[364734863,1749221470328,-440.0,0.00024109,2]
[364734864,1749221470338,-7042.23,0.00024109,2]
[364734865,1749221470348,-250.0,0.00024109,2]
[364734866,1749221470357,-2141.64,0.00024109,2]
[364734867,1749221470367,-1048.92,0.00024109,2]
[364734868,1749221470376,-1728.8,0.00024109,2]
[364734869,1749221470386,-440.0,0.00024109,2]
[364734870,1749221470396,-1610.94,0.00024109,2]
[364734871,1749221470406,-762.23,0.00024109,2]
[364734872,1749221470415,-549.15,0.00024109,2]
[364734873,1749221470425,-440.0,0.00024109,2]
[364734874,1749221470435,-1303.87,0.00024109,2]
[364734875,1749221470445,-3348.6,0.00024109,2]
[364734876,1749221470455,-440.0,0.00024109,2]
[364734877,1749221470466,-3960.93,0.00024109,2]
[364734878,1749221470476,-151.0,0.00024109,7]
[364734879,1749221470486,-3666.78,0.00024109,2]
[364734880,1749221470495,-440.0,0.00024109,2]
[364734881,1749221470505,-366.54036688,0.00024109,2]
[364734882,1749221470515,-5100.6586578,0.0002421,10]
[364734883,1749221470524,-546.06,0.00024244,2]
[364734884,1749221470534,-600.0,0.00024255,2]
[364734885,1749221470544,-5024.6266442,0.00024284,2]
[364734886,1749221470553,-3985.23952,0.000243,2]
[364734887,1749221470563,-834.50537533,0.000243,10]
[364734888,1749221470573,-229.52673067,0.000243,10]
[364734889,1749221470583,-160.0,0.000243,10]
[364734890,1749221470592,-215.0738,0.00024306,2]
[364734891,1749221470602,-250.73370486,0.00024321,2]
[364734892,1749221470611,-2593.40689128,0.00024348,3]
[364734893,1749221470621,-5100.6586578,0.00024383,11]
[364734894,1749221470631,-487.07,0.00024383,2]
[364734895,1749221470640,-2565.25,0.00024383,2]
[364734896,1749221470650,-630.41,0.00024383,2]
[364734897,1749221470660,-3341.58,0.00024383,2]
[364734898,1749221470669,-195.550313,0.00024383,7]
[364734899,1749221470679,-195.550313,0.00024383,7]
[364734900,1749221470689,-1359.12,0.00024383,2]
[364734901,1749221470698,-2695.29,0.00024383,2]
[364734902,1749221470709,-1033.38,0.00024383,2]
[364734903,1749221470718,-1275.03,0.00024383,2]
[364734904,1749221470727,-1382.16,0.00024383,2]
[364734905,1749221470736,-151.0,0.00024383,7]
[364734906,1749221470746,-294.221276,0.00024383,7]
[364734907,1749221470755,-530.415545,0.00024383,2]
[364734908,1749221470764,-321.12926851,0.00024383,2]
[364734909,1749221470775,-156.828018,0.00024383,7]
[364734910,1749221470786,-712.69,0.00024383,2]
[364734911,1749221470795,-530.415545,0.00024383,2]
[364734912,1749221470805,-156.828018,0.00024383,7]
[364734913,1749221470814,-440.0,0.00024383,2]
[364734914,1749221470826,-7042.23,0.00024383,2]
[364734915,1749221470835,-192.353307,0.00024383,7]
[364734916,1749221470844,-192.353307,0.00024383,7]
[364734917,1749221470856,-2141.64,0.00024383,2]
[364734918,1749221470866,-1048.92,0.00024383,2]
[364734919,1749221470876,-1728.8,0.00024383,2]
[364734920,1749221470886,-151.0,0.00024383,7]
[364734921,1749221470895,-440.0,0.00024383,2]
[364734922,1749221470905,-1610.94,0.00024383,2]
[364734923,1749221470914,-247.891294,0.00024383,7]
[364734924,1749221470923,-762.23,0.00024383,2]
[364734925,1749221470933,-2000.0,0.00024383,7]
[364734926,1749221470943,-2000.0,0.00024383,7]
[364734927,1749221470952,-2000.0,0.00024383,7]
[364734928,1749221470963,-1346.36514104,0.00024383,7]
[364734929,1749221470973,-549.15,0.00024383,2]
[364734930,1749221470982,-440.0,0.00024383,2]
[364734931,1749221470992,-1303.87,0.00024383,2]
[364734932,1749221471001,-3348.6,0.00024383,2]
[364734933,1749221471010,-440.0,0.00024383,2]
[364734934,1749221471020,-3960.93,0.00024383,2]
[364734935,1749221471029,-3666.78,0.00024383,2]
[364734936,1749221471039,-440.0,0.00024383,2]
[364734937,1749221471048,-1285.53537164,0.00024399,12]
[364734938,1749221471057,-2000.0,0.000244,2]
[364734939,1749221471069,-351.43,0.000244,7]
[364734940,1749221471079,-1000.0,0.000244,7]
[364734941,1749221471089,-1000.0,0.000244,7]
[364734942,1749221471099,-479.99,0.000244,2]
[364734943,1749221471108,-150.0,0.000244,5]
[364734944,1749221471117,-958.9,0.000244,31]
[364734945,1749221471127,-958.9,0.000244,31]
[364734946,1749221471136,-958.9,0.000244,31]
[364734947,1749221471146,-958.9,0.000244,31]
[364734948,1749221471155,-958.9,0.000244,31]
[364734949,1749221471165,-958.9,0.000244,31]
[364734950,1749221471174,-958.9,0.000244,31]
[364734951,1749221471184,-958.9,0.000244,31]
[364734952,1749221471195,-958.9,0.000244,31]
[364734953,1749221471204,-958.9,0.000244,31]
[364734954,1749221471216,-958.9,0.000244,31]
[364734955,1749221471225,-958.9,0.000244,31]